fUSD/lending_fUSD_20250607
["ID","MTS","AMOUNT","RATE_DAILY","PERIOD"]
[364929808,1749310172783,-150.0,0.00018838,2]
[364929809,1749310172807,-1159.44,0.00018855,2]
[364929810,1749310172831,-150.0,0.00018862,2]
[364929811,1749310172855,-150.0,0.00018898,2]
[364929812,1749310172880,-150.0,0.0001892,2]
[364929813,1749310172906,-150.0,0.00018933,2]
[364929814,1749310172931,-33.30370271,0.00018939,2]
[364929815,1749310172977,-1924.55229729,0.00018939,2]
[364929816,1749310173001,-500.0,0.00018939,2]
[364929817,1749310173022,-500.0,0.00018939,2]
[364929818,1749310173047,-500.0,0.00018939,2]
[364929819,1749310173069,-500.0,0.00018939,2]
[364929820,1749310173090,-500.0,0.00018939,2]
[364929821,1749310173347,-500.0,0.00018939,2]
[364929822,1749310173370,-261.77842834,0.00018939,2]
[364929823,1749310173393,-207.4,0.00018939,2]
[364929824,1749310173414,-379.0,0.0001896,3]
[364929825,1749310173439,-150.0,0.00018961,2]
[364929826,1749310173461,-4077.26927437,0.00018969,2]
[364929827,1749310173527,-10000.0,0.00018969,2]
[364929828,1749310173951,-6606.15129204,0.00018969,2]
[364929829,1749310173975,-151.0,0.00018989,2]
[364929830,1749310173998,-151.0,0.00018989,2]
[364929831,1749310174020,-151.0,0.00018989,2]
[364929832,1749310174042,-500.0,0.00018989,2]
[364929833,1749310174066,-500.0,0.00018989,2]
[364929834,1749310174092,-500.0,0.00018989,2]
[364929835,1749310174115,-500.0,0.00018989,2]
[364929836,1749310174139,-940.84870796,0.00018989,2]
[364929837,1749310174517,-59.15129204,0.00018989,2]
[364929838,1749310174542,-500.0,0.00018989,2]
[364929839,1749310174564,-151.0,0.00018989,2]
[364929840,1749310174587,-500.0,0.00018989,2]
[364929841,1749310174608,-151.0,0.00018989,2]
[364929842,1749310174633,-500.0,0.00018989,2]
[364929843,1749310174668,-668.65185757,0.00018989,2]
[364929844,1749310174693,-500.0,0.00018989,2]
[364929845,1749310174717,-500.0,0.00018989,2]
[364929846,1749310174740,-151.0,0.00018989,2]
[364929847,1749310174765,-500.0,0.00018989,2]
[364929848,1749310174789,-500.0,0.00018989,2]
[364929849,1749310174814,-500.0,0.00018989,2]
[364929850,1749310174837,-500.0,0.00018989,2]
[364929851,1749310174861,-500.0,0.00018989,2]
[364929852,1749310174887,-151.0,0.00018989,2]
[364929853,1749310174911,-500.0,0.00018989,2]
[364929854,1749310174940,-500.0,0.00018989,2]
[364929855,1749310174965,-500.0,0.00018989,2]
[364929856,1749310174988,-151.0,0.00018989,2]
[364929857,1749310175012,-500.0,0.00018989,2]
[364929858,1749310175037,-500.0,0.00018989,2]
[364929859,1749310175060,-151.0,0.00018989,2]
[364929860,1749310175083,-500.0,0.00018989,2]
[364929861,1749310175107,-366.19685039,0.00018989,2]
[364929862,1749310175155,-133.80314961,0.00018989,2]
[364929863,1749310175185,-500.0,0.00018989,2]
[364929864,1749310175208,-151.0,0.00018989,2]
[364929865,1749310175232,-500.0,0.00018989,2]
[364929866,1749310175257,-500.0,0.00018989,2]
[364929867,1749310175282,-500.0,0.00018989,2]
[364929868,1749310175304,-257.46242383,0.00018989,2]
[364929869,1749310175329,-500.0,0.00018989,2]
[364929870,1749310175358,-500.0,0.00018989,2]
[364929871,1749310175382,-500.0,0.00018989,2]
[364929872,1749310175407,-500.0,0.00018989,2]
[364929873,1749310175432,-500.0,0.00018989,2]
[364929874,1749310175460,-500.0,0.00018989,2]
[364929875,1749310175483,-500.0,0.00018989,2]
[364929876,1749310175510,-500.0,0.00018989,2]
[364929877,1749310175534,-500.0,0.00018989,2]
[364929878,1749310175557,-500.0,0.00018989,2]
[364929879,1749310175583,-500.0,0.00018989,2]
[364929880,1749310175608,-500.0,0.00018989,2]
[364929881,1749310175631,-500.0,0.00018989,2]
[364929882,1749310175656,-500.0,0.00018989,2]
[364929883,1749310175682,-457.73442656,0.00018989,2]
[364929884,1749310175909,-42.26557344,0.00018989,2]
[364929885,1749310175933,-500.0,0.00018989,2]
[364929886,1749310175959,-500.0,0.00018989,2]
[364929887,1749310175989,-500.0,0.00018989,2]
[364929888,1749310176013,-500.0,0.00018989,2]
[364929889,1749310176038,-500.0,0.00018989,2]
[364929890,1749310176064,-500.0,0.00018989,2]
[364929891,1749310176089,-500.0,0.00018989,2]
[364929892,1749310176113,-500.0,0.00018989,2]
[364929893,1749310176137,-500.0,0.00018989,2]
[364929894,1749310176161,-500.0,0.00018989,2]
[364929895,1749310176184,-500.0,0.00018989,2]
[364929896,1749310176206,-151.0,0.00018989,2]
[364929897,1749310176234,-500.0,0.00018989,2]
[364929898,1749310176256,-500.0,0.00018989,2]
[364929899,1749310176280,-500.0,0.00018989,2]
[364929900,1749310176303,-500.0,0.00018989,2]
[364929901,1749310176326,-500.0,0.00018989,2]
[364929902,1749310176352,-500.0,0.00018989,2]
[364929903,1749310176376,-500.0,0.00018989,2]
[364929904,1749310176400,-500.0,0.00018989,2]
[364929905,1749310176424,-306.73442656,0.00018989,2]
[364929906,1749310176509,-193.26557344,0.00018989,2]
[364929907,1749310176534,-2030.296672,0.00018994,2]
[364929908,1749310176557,-6465.12452566,0.00019,2]
[364929909,1749310176581,-500.0,0.00019,2]
[364929910,1749310176604,-500.0,0.00019,2]
[364929911,1749310176628,-311.3132289,0.00019,2]
[364929912,1749310176719,-188.6867711,0.00019,2]
[364929913,1749310176743,-500.0,0.00019,2]
[364929914,1749310176764,-346.52402406,0.0001901,7]
[364929915,1749310176788,-150.0,0.00019021,2]
[364929916,1749310176824,-280.51,0.00019032,2]
[364929917,1749310176850,-2105.41764886,0.00019049,2]
[364929918,1749310176877,-150.0,0.00019076,2]
[364929919,1749310176904,-150.0,0.00019084,2]
[364929920,1749310176930,-150.0,0.0001909,2]
[364929921,1749310176955,-2183.31810187,0.00019104,2]
[364929922,1749310176980,-150.0,0.00019126,2]
[364929923,1749310177007,-150.0,0.00019134,2]
[364929924,1749310177037,-2264.10087164,0.00019159,2]
[364929925,1749310177067,-169.3,0.00019178,2]
[364929926,1749310177104,-150.0,0.00019186,2]
[364929927,1749310177129,-912.14258247,0.00019214,2]
[364929928,1749310177252,-1435.73002142,0.00019214,2]
[364929929,1749310177278,-150.0,0.00019217,2]
[364929930,1749310177302,-150.0,0.00019237,2]
[364929931,1749310177325,-2434.74389024,0.00019269,2]
[364929932,1749310177353,-150.0,0.00019285,2]
[364929933,1749310177378,-400.0,0.000193,7]
[364929934,1749310177403,-2524.82941417,0.00019324,2]
[364929935,1749310177430,-150.0,0.00019362,2]
[364929936,1749310177458,-2604.69667417,0.00019379,2]
[364929937,1749310177715,-13.55142833,0.00019379,2]
[364929938,1749310177741,-379.0,0.00019387,4]
[364929939,1749310177767,-1000.0,0.000194,2]
[364929940,1749310177792,-800.0,0.000194,7]
[364929941,1749310177816,-184.11968837,0.00019416,2]
[364929942,1749310177839,-228.68,0.0001943,2]
[364929943,1749310177868,-2715.12328229,0.00019434,2]
[364929944,1749310177895,-158.2330364,0.00019487,2]
[364929945,1749310177918,-252.38631949,0.00019489,2]
[364929946,1749310177944,-2815.58284374,0.00019489,2]
[364929947,1749310177970,-1453.32340138,0.00019495,2]
[364929948,1749310178220,-7710.41564249,0.00019495,2]
[364929949,1749310178243,-2289.58435751,0.000195,2]
[364929950,1749310178658,-8896.84048165,0.000195,2]
[364929951,1749310178682,-1000.0,0.000195,2]
[364929952,1749310178707,-103.15951835,0.000195,7]
[364929953,1749310179228,-1196.84048165,0.000195,7]
[364929954,1749310179254,-8803.15951835,0.00019506,2]
[364929955,1749310180038,-360.57952546,0.00019506,2]
[364929956,1749310180061,-9163.73904381,0.00019517,2]
[364929957,1749310180087,-150.0,0.00019519,2]
[364929958,1749310180110,-325.68143073,0.00019523,2]
[364929959,1749310180437,-249.05768197,0.00019523,2]
[364929960,1749310180458,-212.591451,0.00019528,2]
[364929961,1749310180480,-151.0,0.00019528,2]
[364929962,1749310180503,-9163.73904381,0.00019528,2]
[364929963,1749310180523,-153.22322197,0.00019537,2]
[364929964,1749310180547,-70.38860125,0.00019539,2]
[364929965,1749310180604,-9093.35044256,0.00019539,2]
[364929966,1749310180628,-906.64955744,0.00019544,2]
[364929967,1749310181091,-2013.10985151,0.00019544,2]
[364929968,1749310181111,-1000.0,0.00019548,2]
[364929969,1749310181135,-333.33110275,0.00019548,2]
[364929970,1749310181160,-1000.0,0.00019548,2]
[364929971,1749310181181,-1000.0,0.00019548,2]
[364929972,1749310181203,-4653.55904574,0.00019551,2]
[364929973,1749310181525,-4510.17999807,0.00019551,2]
[364929974,1749310181547,-151.0,0.00019552,2]
[364929975,1749310181570,-375.666192,0.00019553,2]
[364929976,1749310181592,-500.0,0.00019561,2]
[364929977,1749310181617,-500.0,0.00019561,2]
[364929978,1749310181639,-500.0,0.00019561,2]
[364929979,1749310181663,-294.13663748,0.00019561,2]
[364929980,1749310181684,-158.55177705,0.00019561,2]
[364929981,1749310181708,-500.0,0.00019561,2]
[364929982,1749310181731,-500.0,0.00019561,2]
[364929983,1749310181755,-2010.4653954,0.00019562,2]
[364929984,1749310181929,-7153.27364841,0.00019562,2]
[364929985,1749310181951,-151.0,0.00019564,2]
[364929986,1749310181975,-151.0,0.00019564,2]
[364929987,1749310181998,-151.0,0.00019564,2]
[364929988,1749310182021,-151.0,0.00019564,2]
[364929989,1749310182045,-1319.2224,0.00019564,2]
[364929990,1749310182068,-500.0,0.00019564,2]
[364929991,1749310182089,-423.50395159,0.00019564,2]
[364929992,1749310182377,-10000.0,0.00019564,2]
[364929993,1749310182850,-10000.0,0.00019564,2]
[364929994,1749310183195,-10000.0,0.00019564,2]
[364929995,1749310183676,-5643.93974841,0.00019564,2]
[364929996,1749310183700,-1000.0,0.00019564,2]
[364929997,1749310183724,-500.0,0.00019573,2]
[364929998,1749310183746,-2856.06025159,0.00019573,2]
[364929999,1749310184112,-6307.67879222,0.00019573,2]
[364930000,1749310184136,-1319.99372153,0.00019583,2]
[364930001,1749310184160,-2372.32748625,0.00019584,2]
[364930002,1749310184654,-6791.41155756,0.00019584,2]
[364930003,1749310184678,-3208.58844244,0.00019586,2]
[364930004,1749310185076,-145.65666236,0.00019586,2]
[364930005,1749310185098,-160.30486295,0.00019587,2]
[364930006,1749310185120,-351.20270656,0.00019587,2]
[364930007,1749310185143,-3123.33611343,0.00019587,2]
[364930008,1749310185165,-1000.0,0.00019587,2]
[364930009,1749310185187,-151.0,0.00019587,2]
[364930010,1749310185208,-5068.4996547,0.00019587,2]
[364930011,1749310185554,-10000.0,0.00019587,2]
[364930012,1749310186031,-151.0,0.00019528,2]
[364930013,1749310186055,-9684.79635671,0.00019587,2]
[364930014,1749310186078,-164.20364329,0.00019588,2]
[364930015,1749310186334,-2959.13247008,0.00019588,2]
[364930016,1749310186357,-151.0,0.00019588,2]
[364930017,1749310186380,-151.0,0.00019588,2]
[364930018,1749310186402,-151.0,0.00019588,2]
[364930019,1749310186425,-151.0,0.00019588,2]
[364930020,1749310186447,-151.0,0.00019588,2]
[364930021,1749310186469,-153.155426,0.00019588,2]
[364930022,1749310186492,-151.0,0.00019588,2]
[364930023,1749310186515,-3123.33611337,0.00019589,2]
[364930024,1749310186540,-2083.947237,0.00019589,2]
[364930025,1749310186564,-774.42875355,0.00019589,2]
[364930029,1749310186828,-151.0,0.00019564,2]
[364930030,1749310186850,-1309.51848345,0.00019589,2]
[364930031,1749310186872,-400.40194,0.00019589,2]
[364930032,1749310186896,-400.40194,0.00019589,2]
[364930033,1749310186915,-151.0,0.00019589,2]
[364930034,1749310186938,-342.10705,0.00019589,2]
[364930035,1749310186961,-342.10705,0.00019589,2]
[364930036,1749310186985,-212.165329,0.00019589,2]
[364930037,1749310187006,-212.165329,0.00019589,2]
[364930038,1749310187028,-151.0,0.00019589,2]
[364930039,1749310187048,-151.0,0.00019589,2]
[364930040,1749310187071,-3123.33611337,0.0001959,2]
[364930041,1749310187094,-3053.79676518,0.00019591,2]
[364930042,1749310187346,-151.0,0.00019587,2]
[364930043,1749310187369,-69.53934819,0.00019591,2]
[364930044,1749310187390,-500.0,0.00019591,2]
[364930045,1749310187413,-1244.0,0.00019591,2]
[364930046,1749310187437,-3237.0,0.00019591,2]
[364930047,1749310187459,-150.0,0.00019591,2]
[364930048,1749310187481,-150.0,0.00019591,2]
[364930049,1749310187503,-150.0,0.00019591,2]
[364930050,1749310187526,-500.0,0.00019591,2]
[364930051,1749310187549,-3123.33611337,0.00019591,2]
[364930052,1749310187571,-725.12453844,0.00019592,2]
[364930053,1749310187691,-2398.21157493,0.00019592,2]
[364930054,1749310187715,-3123.33611337,0.00019593,2]
[364930055,1749310187737,-151.0,0.00019594,2]
[364930056,1749310187759,-151.0,0.00019594,2]
[364930057,1749310187782,-3123.33611337,0.00019594,2]
[364930058,1749310187804,-1053.11619833,0.00019595,2]
[364930059,1749310188548,-10000.0,0.00019595,2]
[364930060,1749310188801,-1785.72310167,0.00019595,2]
[364930061,1749310188824,-2369.7187,0.00019595,2]
[364930062,1749310188846,-161.779004,0.00019595,2]
[364930063,1749310188870,-1135.052508,0.00019595,2]
[364930064,1749310188896,-151.0,0.00019595,2]
[364930065,1749310188920,-1135.052508,0.00019595,2]
[364930066,1749310188944,-151.0,0.00019595,2]
[364930067,1749310189242,-3110.67417833,0.00019595,2]
[364930068,1749310189281,-12.66193504,0.00019595,2]
[364930069,1749310189304,-9163.73904381,0.00019595,2]
[364930070,1749310189328,-823.59902115,0.00019595,2]
[364930071,1749310189665,-1260.34821585,0.00019595,2]
[364930072,1749310189689,-2083.947237,0.00019595,2]
[364930073,1749310189711,-151.0,0.00019595,2]
[364930074,1749310189736,-151.0,0.00019595,2]
[364930075,1749310189758,-151.0,0.00019595,2]
[364930076,1749310189780,-151.0,0.00019595,2]
[364930077,1749310189804,-151.0,0.00019595,2]
[364930078,1749310189827,-400.40194,0.00019595,2]
[364930079,1749310189850,-400.40194,0.00019595,2]
[364930080,1749310189874,-342.10705,0.00019595,2]
[364930081,1749310189901,-342.10705,0.00019595,2]
[364930082,1749310189923,-212.165329,0.00019595,2]
[364930083,1749310189948,-241.744721,0.00019595,2]
[364930084,1749310189971,-212.165329,0.00019595,2]
[364930085,1749310189994,-241.744721,0.00019595,2]
[364930086,1749310190016,-151.0,0.00019595,2]
[364930087,1749310190038,-151.0,0.00019595,2]
[364930088,1749310190060,-151.0,0.00019595,2]
[364930089,1749310190083,-151.0,0.00019595,2]
[364930090,1749310190106,-151.0,0.00019595,2]
[364930091,1749310190128,-151.0,0.00019596,2]
[364930092,1749310190152,-151.0,0.00019596,2]
[364930093,1749310190179,-150.0,0.00019596,2]
[364930094,1749310190200,-500.0,0.00019596,2]
[364930095,1749310190222,-150.0,0.00019596,2]
[364930096,1749310190246,-150.0,0.00019596,2]
[364930097,1749310190270,-1500.86646715,0.00019599,2]
[364930098,1749310190627,-589.21867194,0.00019587,2]
[364930099,1749310190652,-1526.92403994,0.00019599,2]
[364930100,1749310190674,-7883.85728812,0.00019599,2]
[364930101,1749310190717,-10000.0,0.00019599,2]
[364930102,1749310191315,-10000.0,0.00019599,2]
[364930103,1749310191588,-10000.0,0.00019599,2]
[364930104,1749310191852,-10000.0,0.00019599,2]
[364930105,1749310192277,-10000.0,0.00019599,2]
[364930106,1749310192839,-378.66943307,0.00019599,2]
[364930107,1749310192864,-9621.33056693,0.000196,2]
[364930108,1749310193310,-10000.0,0.000196,2]
[364930109,1749310193603,-10000.0,0.000196,2]
[364930110,1749310193965,-10000.0,0.000196,2]
[364930111,1749310194457,-151.0,0.00019595,2]
[364930112,1749310194482,-9849.0,0.000196,2]
[364930113,1749310194895,-10000.0,0.000196,2]
[364930114,1749310195214,-10000.0,0.000196,2]
[364930115,1749310195810,-10000.0,0.000196,2]
[364930116,1749310196137,-10000.0,0.000196,2]
[364930117,1749310196619,-10000.0,0.000196,2]
[364930118,1749310197044,-10000.0,0.000196,2]
[364930119,1749310197362,-10000.0,0.000196,2]
[364930120,1749310197688,-10000.0,0.000196,2]
[364930121,1749310198037,-10000.0,0.000196,2]
[364930122,1749310198412,-10000.0,0.000196,2]
[364930123,1749310198738,-10000.0,0.000196,2]
[364930124,1749310199149,-10000.0,0.000196,2]
[364930125,1749310199827,-10000.0,0.000196,2]
[364930126,1749310200269,-10000.0,0.000196,2]
[364930127,1749310201275,-10000.0,0.000196,2]
[364930128,1749310201421,-10000.0,0.000196,2]
[364930129,1749310201661,-5000.0,0.00019583,2]
[364930130,1749310201687,-1200.0,0.00019599,2]
[364930131,1749310201710,-300.0,0.00019599,2]
[364930132,1749310201737,-3500.0,0.000196,2]
[364930133,1749310202103,-10000.0,0.000196,2]
[364930134,1749310202683,-10000.0,0.000196,2]
[364930135,1749310203157,-10000.0,0.000196,2]
[364930136,1749310203549,-10000.0,0.000196,2]
[364930137,1749310203874,-528.54555694,0.00019573,2]
[364930138,1749310203907,-9471.45444306,0.000196,2]
[364930139,1749310204411,-10000.0,0.000196,2]
[364930140,1749310204744,-10000.0,0.000196,2]
[364930141,1749310205241,-10000.0,0.000196,2]
[364930142,1749310205935,-10000.0,0.000196,2]
[364930143,1749310206256,-10000.0,0.000196,2]
[364930144,1749310206578,-10000.0,0.000196,2]
[364930145,1749310207140,-10000.0,0.000196,2]
[364930146,1749310207654,-10000.0,0.000196,2]
[364930147,1749310208160,-10000.0,0.000196,2]
[364930148,1749310208685,-10000.0,0.000196,2]
[364930149,1749310209155,-10000.0,0.000196,2]
[364930150,1749310210047,-10000.0,0.000196,2]
[364930151,1749310210591,-10000.0,0.0001959,2]
[364930152,1749310210860,-67.31,0.0001959,2]
[364930153,1749310210883,-9932.69,0.0001959,2]
[364930154,1749310211055,-134.62,0.0001959,2]
[364930155,1749310211083,-9865.38,0.000196,2]
[364930156,1749310211641,-300.0,0.00019599,2]
[364930157,1749310211669,-9700.0,0.000196,2]
[364930158,1749310212104,-10000.0,0.000196,2]
[364930159,1749310212396,-10000.0,0.000196,2]
[364930160,1749310213079,-10000.0,0.000196,2]
[364930161,1749310214046,-10000.0,0.000196,2]
[364930162,1749310215442,-10000.0,0.000196,2]
[364930163,1749310222058,-151.84,0.0001959,2]
[364930164,1749310222087,-3848.16,0.000196,2]
[364930197,1749310232974,-338.099573,0.00019561,2]
[364930199,1749310232985,-360.88103574,0.000196,2]
[364930201,1749310232996,-639.11896426,0.000196,2]
[364930204,1749310233006,-344.9104283,0.000196,7]
[364930211,1749310233079,-1355.0895717,0.000196,7]
[364930212,1749310233089,-1000.0,0.00019603,2]
[364930213,1749310233099,-1000.0,0.00019607,2]
[364930214,1749310233109,-500.0,0.00019618,2]
[364930215,1749310233118,-1244.0,0.00019618,2]
[364930216,1749310233129,-150.0,0.00019618,2]
[364930217,1749310233139,-200.55363213,0.00019618,2]
[364930218,1749310233149,-150.0,0.00019623,2]
[364930219,1749310233159,-150.0,0.00019623,2]
[364930220,1749310233169,-500.0,0.00019623,2]
[364930221,1749310233179,-263.09230434,0.00019623,2]
[364930222,1749310233188,-150.0,0.00019623,2]
[364930223,1749310233198,-1200.0,0.00019624,2]
[364930224,1749310233208,-500.0,0.00019646,2]
[364930225,1749310233218,-1244.0,0.00019646,2]
[364930226,1749310233227,-229.09263784,0.00019646,2]
[364930227,1749310233237,-150.0,0.00019651,2]
[364930228,1749310233247,-500.0,0.00019651,2]
[364930229,1749310233256,-150.0,0.00019651,2]
[364930230,1749310233267,-151.0,0.00019652,2]
[364930231,1749310233277,-151.0,0.00019652,2]
[364930233,1749310233287,-151.0,0.00019652,2]
[364930234,1749310233298,-151.0,0.00019652,2]
[364930236,1749310233308,-151.0,0.00019652,2]
[364930238,1749310233318,-151.0,0.00019652,2]
[364930240,1749310233328,-151.0,0.00019652,2]
[364930242,1749310233338,-184.388962,0.00019652,2]
[364930244,1749310233348,-184.388962,0.00019652,2]
[364930246,1749310233359,-3139.81875585,0.00019654,2]
[364930248,1749310233369,-176.665353,0.00019663,2]
[364930250,1749310233379,-151.0,0.00019664,2]
[364930252,1749310233389,-151.0,0.00019664,2]
[364930254,1749310233399,-151.0,0.00019664,2]
[364930256,1749310233409,-151.0,0.00019664,2]
[364930258,1749310233419,-151.0,0.00019664,2]
[364930260,1749310233429,-151.0,0.00019664,2]
[364930262,1749310233438,-151.0,0.00019664,2]
[364930264,1749310233448,-151.0,0.00019664,2]
[364930266,1749310233459,-151.0,0.00019664,2]
[364930268,1749310233468,-1108.825276,0.00019664,2]
[364930270,1749310233478,-1108.825276,0.00019664,2]
[364930272,1749310233488,-151.0,0.00019664,2]
[364930274,1749310233499,-151.0,0.00019664,2]
[364930276,1749310233508,-151.0,0.00019664,2]
[364930278,1749310233519,-151.0,0.00019664,2]
[364930280,1749310233530,-164.872847,0.00019664,2]
[364930282,1749310233540,-151.0,0.00019664,2]
[364930284,1749310233550,-151.0,0.00019664,2]
[364930286,1749310233559,-287.757394,0.00019664,2]
[364930288,1749310233570,-151.0,0.00019664,2]
[364930290,1749310233580,-151.0,0.00019664,2]
[364930292,1749310233590,-211.60324,0.00019664,2]
[364930294,1749310233602,-211.60324,0.00019664,2]
[364930296,1749310233613,-211.60324,0.00019664,2]
[364930298,1749310233622,-211.60324,0.00019664,2]
[364930300,1749310233633,-151.0,0.00019664,2]
[364930302,1749310233643,-151.0,0.00019664,2]
[364930304,1749310233652,-151.0,0.00019664,2]
[364930306,1749310233665,-2649.92464045,0.00019664,2]
[364930323,1749310233825,-452.07535955,0.00019664,2]
[364930325,1749310233835,-150.0,0.00019664,2]
[364930327,1749310233844,-500.0,0.00019673,2]
[364930329,1749310233855,-500.0,0.00019673,2]
[364930331,1749310233864,-500.0,0.00019673,2]
[364930333,1749310233873,-1135.052508,0.00019673,2]
[364930335,1749310233884,-1135.052508,0.00019673,2]
[364930336,1749310233894,-2083.947237,0.00019673,2]
[364930339,1749310233908,-2083.947237,0.00019673,2]
[364930341,1749310233917,-400.40194,0.00019673,2]
[364930342,1749310233927,-400.40194,0.00019673,2]
[364930344,1749310233936,-342.10705,0.00019673,2]
[364930346,1749310233947,-342.10705,0.00019673,2]
[364930348,1749310233956,-212.165329,0.00019673,2]
[364930350,1749310233966,-241.744721,0.00019673,2]
[364930352,1749310233976,-212.165329,0.00019673,2]
[364930354,1749310233985,-241.744721,0.00019673,2]
[364930356,1749310233995,-151.0,0.00019673,2]
[364930358,1749310234004,-151.0,0.00019673,2]
[364930360,1749310234014,-151.0,0.00019673,2]
[364930362,1749310234023,-151.0,0.00019673,2]
[364930364,1749310234033,-151.0,0.00019673,2]
[364930366,1749310234043,-500.0,0.00019673,2]
[364930368,1749310234053,-1244.0,0.00019673,2]
[364930370,1749310234062,-150.0,0.00019678,2]
[364930372,1749310234072,-500.0,0.00019678,2]
[364930374,1749310234082,-150.0,0.00019678,2]
[364930376,1749310234091,-487.07,0.00019682,2]
[364930378,1749310234101,-151.0,0.00019682,2]
[364930380,1749310234111,-151.0,0.00019682,2]
[364930382,1749310234120,-151.0,0.00019682,2]
[364930384,1749310234130,-270.808666,0.00019682,2]
[364930386,1749310234140,-151.0,0.00019682,2]
[364930388,1749310234149,-151.0,0.00019682,2]
[364930390,1749310234160,-153.436081,0.00019683,2]
[364930392,1749310234170,-151.0,0.00019683,2]
[364930394,1749310234179,-151.0,0.00019683,2]
[364930396,1749310234189,-151.0,0.00019683,2]
[364930398,1749310234198,-151.0,0.00019683,2]
[364930400,1749310234208,-151.0,0.00019683,2]
[364930402,1749310234217,-1108.825276,0.00019683,2]
[364930404,1749310234227,-1108.825276,0.00019683,2]
[364930406,1749310234237,-1108.825276,0.00019683,2]
[364930408,1749310234247,-1108.825276,0.00019683,2]
[364930410,1749310234257,-151.0,0.00019683,2]
[364930412,1749310234267,-151.0,0.00019683,2]
[364930414,1749310234277,-151.0,0.00019683,2]
[364930416,1749310234286,-151.0,0.00019683,2]
[364930418,1749310234296,-151.0,0.00019683,2]
[364930420,1749310234306,-151.0,0.00019683,2]
[364930422,1749310234316,-143.84817192,0.00019683,2]
[364930426,1749310234336,-7.15182808,0.00019683,2]
[364930428,1749310234346,-180.094485,0.00019683,2]
[364930429,1749310234355,-151.0,0.00019683,2]
[364930431,1749310234364,-151.0,0.00019683,2]
[364930433,1749310234374,-151.0,0.00019683,2]
[364930435,1749310234383,-151.0,0.00019683,2]
[364930437,1749310234393,-151.0,0.00019683,2]
[364930439,1749310234403,-151.0,0.00019683,2]
[364930441,1749310234413,-151.0,0.00019683,2]
[364930443,1749310234422,-1135.052508,0.00019683,2]
[364930445,1749310234432,-151.0,0.00019683,2]
[364930447,1749310234441,-1135.052508,0.00019683,2]
[364930449,1749310234451,-167.89061,0.00019683,2]
[364930451,1749310234461,-184.388962,0.00019683,2]
[364930453,1749310234470,-184.388962,0.00019683,2]
[364930455,1749310234480,-151.0,0.00019683,2]
[364930457,1749310234490,-151.0,0.00019683,2]
[364930459,1749310234500,-211.60324,0.00019683,2]
[364930461,1749310234510,-211.60324,0.00019683,2]
[364930463,1749310234520,-151.0,0.00019683,2]
[364930465,1749310234530,-241.744721,0.00019683,2]
[364930467,1749310234540,-241.744721,0.00019683,2]
[364930469,1749310234549,-151.0,0.00019683,2]
[364930471,1749310234559,-151.0,0.00019683,2]
[364930472,1749310234569,-151.0,0.00019683,2]
[364930473,1749310234578,-151.0,0.00019683,2]
[364930474,1749310234588,-2083.947237,0.00019685,2]
[364930475,1749310234598,-2083.947237,0.00019685,2]
[364930476,1749310234608,-151.0,0.00019685,2]
[364930477,1749310234617,-151.0,0.00019685,2]
[364930478,1749310234627,-151.0,0.00019685,2]
[364930479,1749310234637,-151.0,0.00019685,2]